Workbook

Sheet UnitHydrographs
A1: Watershed A | G1: Watershed B | I1: CN | M1: Watershed C | O1: CN
A2: Forest | B2: 1 | G2: Soils group B | M2: Soils Group C
A3: Soils group A | G3: Forest | H3: 0.3 | J3: =I3*H3 -> 0 | M3: Residential | N3: 0.6 | P3: =O3*N3 -> 0
A4: CN | B4: 70 | G4: Meadow | H4: 0.6 | M4: C&B | N4: 0.2
G5: Residential | H5: 0.1 | M5: Open | N5: 0.2
A7: Overall | B7: =B4 -> 70 | G7: Overall | I7: =SUM(J3:J5) -> 0 | M7: Overall | O7: =SUM(P3:P5) -> 0
A8: S | O8: =1000/O7-10 -> 
A9: Slp | B9: 20 | C9: % | I9: 15 | J9: % | O9: 3 | P9: %
A10: Length | B10: 4 | C10: mi | I10: 3 | J10: mi | O10: 3.5 | P10: mi
A11: Length | B11: =B10*5280 -> 21120 | C11: ft | I11: =I10*5280 -> 15840 | J11: ft | O11: =O10*5280 -> 18480 | P11: ft
A12: Area | B12: 3 | C12: mi^2 | I12: 4 | J12: mi^2 | O12: 3.5 | P12: mi^2
A13: tp | C13: hr | J13: hr | O13: =O11^0.8*(O8+1)^0.7/(1900*O9^0.5) ->  | P13: hr
A15: Use D= | B15: 0.25 | C15: hr
A16: TR | O16: =O13+$B$15/2 -> 
A17: Qp | O17: =484*O12/O16 -> 
A18: B | O18: =1.67*O16 -> 
D20: Interpolated A | K20: Interpolated B | Q20: Interpolated C
A21: t | B21: Q | D21: t | E21: Q | H21: t | I21: Q | K21: t | L21: Q | N21: t | O21: Q | Q21: t | R21: Q
A22: =StdUH!$A4*B$16 -> 0 | B22: =B$17*StdUH!$B4 -> 0 | D22: 0 | E22: =Linterp($A$22:$B$55,D22) -> 0 | H22: =StdUH!$A4*I$16 -> 0 | I22: =I$17*StdUH!$B4 -> 0 | K22: 0 | L22: =Linterp($H$22:$I$55,K22) -> 0 | N22: =StdUH!$A4*O$16 ->  | O22: =O$17*StdUH!$B4 ->  | Q22: 0 | R22: =Linterp($N$22:$O$55,Q22) -> 
D23: =D22+$B$15 -> 0.25 | E23: =Linterp($A$22:$B$55,D23) ->  | H23: =StdUH!$A5*I$16 -> 0 | I23: =I$17*StdUH!$B5 -> 0 | K23: =K22+$B$15 -> 0.25 | L23: =Linterp($H$22:$I$55,K23) ->  | N23: =StdUH!$A5*O$16 ->  | O23: =O$17*StdUH!$B5 ->  | Q23: =Q22+$B$15 -> 0.25 | R23: =Linterp($N$22:$O$55,Q23) -> 
N24: =StdUH!$A6*O$16 ->  | O24: =O$17*StdUH!$B6 -> 

Sheet StdUH
A1: SCS Dimensionless Unit Hydrograph
A2: Time Ratios | B2: Discharge Ratios
A3: (t/tp) | B3: (q/qp)
A4: 0 | B4: 0
A5: 0.1 | B5: 0.03
A6: 0.2 | B6: 0.1
A7: 0.3 | B7: 0.19
A8: 0.4 | B8: 0.31
A9: 0.5 | B9: 0.47
A10: 0.6 | B10: 0.66
A11: 0.7 | B11: 0.82
A12: 0.8 | B12: 0.93
A13: 0.9 | B13: 0.99
A14: 1 | B14: 1
A15: 1.1 | B15: 0.99
A16: 1.2 | B16: 0.93
A17: 1.3 | B17: 0.86
A18: 1.4 | B18: 0.78
A19: 1.5 | B19: 0.68
A20: 1.6 | B20: 0.56
A21: 1.7 | B21: 0.46
A22: 1.8 | B22: 0.39
A23: 1.9 | B23: 0.33
A24: 2 | B24: 0.28
A25: 2.2 | B25: 0.207
A26: 2.4 | B26: 0.147
A27: 2.6 | B27: 0.107
A28: 2.8 | B28: 0.077
A29: 3 | B29: 0.055
A30: 3.2 | B30: 0.04
A31: 3.4 | B31: 0.029
A32: 3.6 | B32: 0.021
A33: 3.8 | B33: 0.015
A34: 4 | B34: 0.011
A35: 4.5 | B35: 0.005
A36: 5 | B36: 0
A37: 100 | B37: 0

Sheet DesignHydrograph
A1: Design Rainfall
A2: Dur | B2: 0.25 | C2: 0.5 | D2: 1 | E2: 2 | F2: 3
A3: Cum | B3: 1.13 | C3: 1.52 | D3: 1.89 | E3: 2.15 | F3: 2.23
D6: Threshold | E6: 0.5 | F6: in
A7: t | B7: P (in per Dt) | C7: Cum P
A8: 0.25 | B8: =B19 -> 0.02 | C8: =B8 -> 0.02 | E8: =MAX(B8-$E$6,0) -> 0
A9: =A8+$B$2 -> 0.5 | B9: =B18 -> 0.02 | C9: =C8+B9 -> 0.04 | E9: =MAX(B9-$E$6,0) -> 0
A10: =A9+$B$2 -> 0.75 | B10: =B11 -> 0.065 | C10: =C9+B10 -> 0.105 | E10: 0
A11: 1 | B11: =B16 -> 0.065 | C11: 0.17 | E11: 0
A12: 1.25 | B12: =(D3-C3)/2 -> 0.185 | C12: 0.355 | E12: 0
A13: 1.5 | B13: =C3-B3 -> 0.39 | C13: 0.745 | E13: 0
A14: 1.75 | B14: =B3 -> 1.13 | C14: 1.875 | E14: 0.63
A15: 2 | B15: =(D3-C3)/2 -> 0.185 | C15: 2.06 | E15: 0
A16: 2.25 | B16: =(E3-D3)/4 -> 0.065 | C16: 2.125 | E16: 0
A17: 2.5 | B17: =B16 -> 0.065 | C17: 2.19 | E17: 0
A18: 2.75 | B18: =(F3-E3)/4 -> 0.02 | C18: 2.21 | E18: 0
A19: 3 | B19: =B18 -> 0.02 | C19: 2.23 | E19: 0
E21: =SUM(E8:E19) -> 0.63
A23: Watershed | B23: A | C23: B | D23: C
A24: S | B24: =UnitHydrographs!B8 -> 0 | C24: =UnitHydrographs!I8 -> 0 | D24: =UnitHydrographs!O8 -> 
A26: P | B26: =F3 -> 2.23 | C26: =B26 -> 2.23 | D26: =C26 -> 2.23 | E26: in
A27: Ia | B27: =0.2*B24 -> 0 | C27: =0.2*C24 -> 0 | E27: in
A28: Q | B28: =(B26-0.2*B24)^2/(B26+0.8*B24) -> 2.23 | C28: =(C26-0.2*C24)^2/(C26+0.8*C24) -> 2.23 | D28: =(D26-0.2*D24)^2/(D26+0.8*D24) ->  | E28: in
A29: F | B29: =(B27-0.2*B25)^2/(B27+0.8*B25) ->  | C29: =C26-C27-C28 -> 0 | D29: =D26-D27-D28 ->  | E29: in
A31: Excess Rainfall Hyetographs after having subtracted infiltration and Ia
A32: t | B32: A | C32: B | D32: C
A33: 0.25
A34: =A33+$B$2 -> 0.5
A35: =A34+$B$2 -> 0.75
A36: 1
A37: 1.25
A38: 1.5
A39: 1.75
A40: 2
A41: 2.25
A42: 2.5
A43: 2.75
A44: 3
A47: Hydrographs | C47: P | F47: P | I47: P
C48: =B39 -> 0 | F48: =C39 -> 0 | I48: =D38 -> 0 | J48: =D39 -> 0 | L48: A+B lagged 0.75 hr (3 time steps)
A49: t | B49: UH A | C49: H A | E49: UH B | F49: H B | H49: UH C | I49: H C | M49: Comb A +B + C
A50: 1.5 | B50: =UnitHydrographs!E22 -> 0 | E50: =UnitHydrographs!L22 -> 0 | H50: =UnitHydrographs!R22 ->  | I50: =H50*$I$48 ->  | M50: =I50+J50+L50 -> 
A51: =A50+0.25 -> 1.75 | C51: =B50*$C$48 -> 0 | F51: =E50*$F$48 -> 0 | J51: =H50*$J$48 -> 
A52: =A51+0.25 -> 2
A53: 2.25
A54: 2.5 | L54: =C51+F51 -> 0
A55: 2.75
A56: 3
A57: 3.25
A58: 3.5
A59: 3.75
A60: 4
A61: 4.25
A62: 4.5
A63: 4.75
A64: 5
A65: 5.25
A66: 5.5
A67: 5.75
A68: 6
A69: 6.25
A70: 6.5
A71: 6.75
A72: 7
A73: 7.25
A74: 7.5
A75: 7.75
A76: 8
A77: =A76+0.25 -> 8.25
A78: 8.5
A79: 8.75
A80: 9
A81: 9.25
A82: 9.5
A83: 9.75
A84: 10
